bitfinex-derivatives/quotes_ETHF0:USTF0_20241026
["timestamp","ask_amount","ask_price","bid_price","bid_amount"]
[1729901338720,4.7688953,2439.6,2439.1,3.2078]
[1729901338915,3.6081953,2439.6,2439.5,7.61468748]
[1729901339215,3.9684201,2439.7,2439.5,7.20409748]
[1729901339519,4.31571877,2439.9,2439.8,0.41054]
[1729901339718,4.31571877,2439.9,2439.8,3.61834]
[1729901340017,4.31571877,2439.9,2439.8,7.71674]
[1729901340221,4.26771877,2439.9,2439.8,7.71674]
[1729901340412,8.95405855,2440.7,2439.8,7.3062]
[1729901340721,3.61821,2440.6,2440.1,3.2078]
[1729901340917,0.41038,2440.8,2440.4,3.2078]
[1729901341311,3.2078,2440.9,2440.4,7.3054]
[1729901341513,0.41038,2440.8,2440.4,3.2078]
[1729901341913,3.61816,2440.9,2440.4,3.2078]
[1729901342408,3.2078,2440.9,2440.4,3.2078]
[1729901342616,0.41039,2440.7,2440.4,3.2078]
[1729901342821,0.41041,2440.6,2440.4,3.2078]
[1729901343019,3.2078,2440.9,2440.4,3.2078]
[1729901343020,0.4104,2440.7,2440.4,3.2078]
[1729901343214,3.2078,2440.9,2440.4,3.2078]
[1729901343417,3.61817,2440.9,2440.4,3.2078]
[1729901343718,3.2078,2440.9,2440.4,3.2078]
[1729901344120,3.2078,2440.9,2440.4,7.71584]
[1729901344309,6.36174129,2441.4,2440.4,8.9214]
[1729901344513,6.36174129,2441.4,2441.0,3.2078]
[1729901344723,6.36174129,2441.4,2441.3,7.20409748]
[1729901345221,6.36174129,2441.4,2440.9,3.99629748]
[1729901345523,6.36174129,2441.4,2441.1,3.2078]
[1729901346317,6.77202129,2441.4,2441.2,3.2078]
[1729901346521,6.36174129,2441.4,2441.2,3.2605]
[1729901346722,0.41029,2441.3,2441.2,3.2605]
[1729901346918,6.36174129,2441.4,2441.2,3.2605]
[1729901347323,6.36174129,2441.4,2441.3,4.096]
[1729901347526,6.36174129,2441.4,2441.3,4.50629]
[1729901348121,7.78638744,2442.1,2441.3,4.096]
[1729901348122,6.89208744,2442.1,2441.3,4.096]
[1729901348323,6.89208744,2442.1,2441.9,3.2078]
[1729901348620,7.94222816,2442.7,2442.0,1.616]
[1729901348817,7.94222816,2442.7,2442.6,7.20409748]
[1729901349220,0.40999,2443.1,2442.6,11.29769748]
[1729901349527,0.40999,2443.1,2443.0,3.2078]
[1729901349828,0.41004,2442.8,2442.3,3.99629748]
[1729901350128,3.2078,2443.1,2441.9,7.20409748]
[1729901350322,3.2078,2442.5,2441.6,3.2078]
[1729901350512,3.2078,2442.2,2441.5,3.2078]
[1729901350829,8.33164748,2442.7,2441.2,4.04899748]
[1729901350830,3.2078,2441.9,2441.2,0.0527]
[1729901351125,3.2078,2441.9,2441.1,3.2078]
[1729901351126,3.2078,2441.3,2440.6,3.2078]
[1729901351626,0.41042,2440.6,2440.1,3.2078]
[1729901351821,0.4104,2440.7,2440.1,7.20409748]
[1729901352120,0.41035,2441.0,2440.5,3.2078]
[1729901352530,0.41038,2440.8,2440.5,3.2078]
[1729901353026,3.2078,2441.1,2440.2,3.2078]
[1729901353027,0.41044,2440.4,2440.2,3.2078]
[1729901353222,3.2078,2440.7,2440.2,3.2078]
[1729901353524,0.41054,2439.8,2439.6,3.2078]
[1729901354116,0.41056,2439.7,2439.4,3.2078]
[1729901354622,3.2078,2440.0,2439.4,3.2078]
[1729901354831,0.41064,2439.3,2439.1,3.2078]
[1729901355030,4.0992,2439.9,2438.9,3.2078]
[1729901355031,3.2078,2439.7,2438.9,3.2078]
[1729901355220,3.2078,2440.0,2438.9,3.2078]
[1729901355419,3.2078,2440.0,2439.3,3.2078]
[1729901355821,0.41061,2439.4,2439.0,3.2078]
[1729901356128,0.4106,2439.5,2439.0,3.2078]
[1729901356318,3.2078,2440.0,2439.0,3.2078]
[1729901356520,0.41056,2439.7,2439.0,3.61847]
[1729901356718,3.2078,2440.0,2439.0,3.61847]
[1729901356930,0.41054,2439.9,2439.1,0.41065]
[1729901357320,3.2078,2440.0,2439.4,0.41061]
[1729901357523,3.2078,2440.0,2439.6,0.41056]
[1729901357825,3.2078,2440.0,2439.4,3.2078]
[1729901358025,0.41054,2439.9,2439.4,3.2078]
[1729901358331,0.41057,2439.7,2439.2,3.2078]
[1729901358532,0.41059,2439.5,2438.9,3.2078]
[1729901358728,0.8312,2439.6,2438.9,3.2078]
[1729901358927,0.8312,2439.6,2439.2,3.2078]
[1729901360329,0.41059,2439.5,2439.1,3.2078]
[1729901360927,0.8312,2439.6,2439.1,3.2078]
[1729901361435,0.4106,2439.5,2439.1,3.2078]
[1729901361632,0.8312,2439.6,2438.9,3.2078]
[1729901361835,0.8312,2439.6,2439.1,3.2078]
[1729901362033,0.41064,2439.3,2439.1,3.2078]
[1729901362425,0.7742,2439.5,2439.1,3.2078]
[1729901363435,0.7742,2439.5,2439.1,3.61845]
[1729901363740,0.8312,2439.6,2439.2,0.41063]
[1729901364041,1.24178,2439.6,2439.1,3.2078]
[1729901364540,0.8312,2439.6,2439.1,3.2078]
[1729901364929,1.24177,2439.6,2439.1,3.2078]
[1729901365135,0.8312,2439.6,2439.1,3.2078]
[1729901365333,0.41061,2439.4,2439.1,3.2078]
[1729901365531,0.41063,2439.3,2439.1,3.2078]
[1729901366239,0.41066,2439.1,2438.6,3.2078]
[1729901366439,3.61844,2439.3,2438.9,3.2078]
[1729901366632,3.61844,2439.3,2438.6,0.41074]
[1729901367033,0.41064,2439.2,2438.5,3.61855]
[1729901367246,3.2078,2439.3,2438.5,3.61855]
[1729901367548,3.61844,2439.3,2438.5,3.2078]
[1729901367732,3.2078,2439.3,2438.7,0.41072]
[1729901368135,0.3279,2439.2,2438.5,3.2078]
[1729901368336,0.3279,2439.2,2439.0,0.41067]
[1729901368738,0.3279,2439.2,2439.1,7.71846]
[1729901368946,0.3279,2439.2,2439.1,3.61846]
[1729901369244,0.8312,2439.6,2439.1,7.71845]
[1729901369544,0.8312,2439.6,2439.1,3.61845]
[1729901369740,0.8312,2439.6,2439.3,0.41061]
[1729901369946,3.2078,2439.7,2439.4,0.4106]
[1729901370135,3.2078,2440.0,2439.4,3.2078]
[1729901370444,3.2078,2440.0,2439.6,0.41056]
[1729901371038,3.61831,2440.0,2439.4,3.6184]
[1729901371444,3.2078,2440.0,2439.4,3.2078]
[1729901371743,7.307,2440.0,2439.1,3.2078]
[1729901372039,3.2078,2439.6,2438.8,3.2078]
[1729901372241,0.41067,2439.1,2438.8,3.2078]
[1729901372540,0.41065,2439.2,2438.8,3.2078]
[1729901373642,0.41072,2438.8,2438.4,3.2078]
[1729901373943,0.41071,2438.8,2438.4,3.2078]
[1729901374149,0.7873,2439.1,2438.4,3.2078]
[1729901374444,0.7873,2439.1,2438.6,0.41073]
[1729901374643,0.7873,2439.1,2438.4,3.2078]
[1729901374851,3.2078,2439.3,2438.7,3.2078]
[1729901375146,0.8172,2439.5,2439.1,3.2078]
[1729901375541,3.2078,2439.7,2439.4,0.41061]
[1729901375745,3.9842,2440.0,2439.4,3.2078]
[1729901375941,3.9842,2440.0,2439.5,0.41058]
[1729901376338,3.9842,2440.0,2439.5,0.41059]
[1729901376551,3.9842,2440.0,2439.6,0.41057]
[1729901376847,3.2078,2440.0,2439.8,0.41053]
[1729901377148,0.41045,2440.4,2439.8,3.61833]
[1729901377149,3.61825,2440.4,2439.8,3.61833]
[1729901377342,3.61825,2440.4,2439.9,0.41052]
[1729901377543,3.2078,2440.4,2439.8,3.2078]
[1729901377748,3.2078,2440.4,2439.9,0.41051]
[1729901377939,1.5322,2440.7,2439.9,0.41051]
[1729901377940,5.15039,2440.7,2440.1,3.2078]
[1729901378137,5.15039,2440.7,2440.1,3.61828]
[1729901378337,5.15039,2440.7,2440.3,0.41045]
[1729901378338,4.74,2440.7,2440.3,0.41045]
[1729901378546,3.9842,2440.7,2440.4,0.41044]
[1729901379346,0.7558,2441.3,2439.9,3.99629748]
[1729901379347,3.9636,2441.3,2440.3,3.2078]
[1729901379556,3.9636,2441.3,2440.6,3.2078]
[1729901379557,4.0161,2441.2,2440.6,3.2078]
[1729901380550,3.61814,2441.0,2440.4,3.61824]
[1729901380749,3.2078,2441.0,2440.4,3.2078]
[1729901380945,3.2078,2441.0,2440.5,0.41042]
[1729901381146,0.41036,2440.9,2440.4,3.61823]
[1729901381350,3.2078,2441.0,2440.4,3.2078]
[1729901381748,0.41039,2440.7,2440.5,3.2078]
[1729901382044,0.41041,2440.6,2440.5,3.2078]
[1729901382243,0.41044,2440.5,2440.0,3.2078]
[1729901382444,3.2078,2440.7,2440.0,3.2078]
[1729901382652,3.6182,2440.7,2440.1,0.41049]
[1729901383648,3.2078,2440.7,2440.4,0.41043]
[1729901383841,3.2078,2440.7,2440.0,7.20409748]
[1729901384043,3.2078,2440.7,2440.5,0.41042]
[1729901384251,3.2078,2440.7,2440.0,3.2078]
[1729901384449,0.4105,2440.1,2439.8,3.2078]
[1729901384650,0.4105,2440.1,2439.5,0.41059]
[1729901384651,3.2078,2440.8,2439.5,0.41059]
[1729901384857,0.41054,2439.8,2439.7,3.2078]
[1729901385055,0.41057,2439.7,2439.6,3.2078]
[1729901385254,0.41057,2439.7,2439.3,3.2078]
[1729901385754,0.41058,2439.6,2439.3,3.2078]
[1729901385959,0.41053,2439.9,2439.3,3.61841]
[1729901386252,0.41055,2439.8,2439.3,3.2078]
[1729901386756,0.41053,2439.9,2439.4,0.41061]
[1729901386954,3.2078,2440.0,2439.4,0.41061]
[1729901387144,3.61832,2440.0,2439.4,0.41061]
[1729901387350,3.2078,2440.0,2439.3,3.2078]
[1729901387547,3.2078,2440.0,2439.6,0.41056]
[1729901387844,3.2078,2440.0,2439.3,3.2078]
[1729901388846,3.2078,2440.0,2439.5,0.41058]
[1729901389050,3.61832,2440.0,2439.4,0.4106]
[1729901389258,0.41053,2439.9,2439.3,3.61842]
[1729901389853,3.2078,2440.0,2439.5,0.41058]
[1729901390065,3.2078,2440.0,2439.3,3.2078]
[1729901390258,3.2078,2440.0,2439.7,0.41055]
[1729901390458,3.2078,2440.0,2439.6,0.41056]
[1729901390658,3.2078,2440.0,2439.7,0.41055]
[1729901390859,3.2078,2440.0,2439.3,3.2078]
[1729901391059,5.17586,2440.3,2439.7,3.61834]
[1729901391756,1.5576,2440.3,2440.0,3.2078]
[1729901391962,3.2078,2440.6,2440.1,4.0984]
[1729901392255,3.2078,2440.6,2440.4,0.41043]
[1729901392652,3.2078,2440.6,2440.0,3.2078]
[1729901392960,3.2078,2440.6,2440.4,0.41044]
[1729901393159,4.7627,2441.2,2440.5,3.2078]
[1729901393358,0.41033,2441.1,2440.5,3.61821]
[1729901393956,0.41033,2441.1,2440.5,3.2078]
[1729901394260,5.17301,2441.2,2440.6,0.41039]
[1729901394462,0.41032,2441.1,2440.8,3.2078]
[1729901394760,0.41032,2441.1,2440.6,0.41039]
[1729901395264,0.41032,2441.1,2440.5,3.61821]
[1729901395861,0.41032,2441.1,2440.8,3.2078]
[1729901396058,4.7627,2441.2,2440.8,3.2078]
[1729901396261,4.7627,2441.2,2440.8,3.61816]
[1729901396851,4.7627,2441.2,2440.8,3.2078]
[1729901397056,0.41035,2441.0,2440.6,3.2078]
[1729901397252,4.7627,2441.2,2440.2,3.2078]
[1729901397457,0.41043,2440.5,2440.3,3.2078]
[1729901397657,0.753,2440.4,2440.3,3.2078]
[1729901400069,1.16344,2440.4,2440.3,3.2078]
[1729901400265,5.26104,2440.4,2440.3,3.2078]
[1729901400468,1.0808,2440.4,2440.3,3.2078]
[1729901400877,1.49124,2440.4,2440.3,3.2078]
[1729901401371,1.0808,2440.4,2440.3,3.2078]
[1729901401777,1.0808,2440.4,2440.0,0.41051]
[1729901401975,0.41046,2440.3,2440.2,3.2078]
[1729901402169,0.4105,2440.1,2439.8,3.2078]
[1729901402566,1.8554,2440.4,2439.8,3.2078]
[1729901403778,2.26585,2440.4,2440.1,3.2078]
[1729901404078,1.8554,2440.4,2440.1,3.2078]
[1729901404267,0.3278,2440.4,2440.1,3.2078]
[1729901404475,0.3278,2440.4,2440.2,0.41047]
[1729901404775,0.3278,2440.4,2440.3,3.2078]
[1729901404776,0.73824,2440.4,2440.3,3.2078]
[1729901405085,0.3278,2440.4,2440.1,3.2078]
[1729901405477,0.3278,2440.4,2440.2,0.41046]
[1729901405683,0.3278,2440.4,2440.1,3.2078]
[1729901405985,0.3278,2440.4,2440.3,0.41046]
[1729901406180,0.3278,2440.4,2440.3,4.50806]
[1729901406482,3.61807,2441.5,2440.9,0.41034]
[1729901406692,3.61807,2441.5,2441.0,3.61813]
[1729901406873,0.41027,2441.4,2441.0,3.2078]
[1729901407278,3.2078,2441.5,2441.0,3.2078]
[1729901407474,3.61806,2441.5,2441.0,3.61813]
[1729901407789,0.41031,2441.2,2441.0,3.2078]
[1729901408487,3.2078,2441.5,2441.0,3.2078]
[1729901408787,3.2078,2441.5,2440.9,3.2078]
[1729901408987,0.41027,2441.4,2440.9,3.2078]
[1729901409179,0.41027,2441.4,2440.9,3.61815]
[1729901409377,3.2078,2441.5,2441.1,0.41031]
[1729901409683,3.2078,2441.5,2440.9,3.2078]
[1729901410080,0.41031,2441.2,2440.9,3.2078]
[1729901410591,3.2078,2441.5,2440.9,3.2078]
[1729901410888,0.41031,2441.2,2440.9,3.2078]
[1729901411780,0.7742,2441.1,2440.9,3.2078]
[1729901411984,1.18453,2441.1,2440.9,3.2078]
[1729901412284,0.7742,2441.1,2440.9,3.61815]
[1729901412474,3.2078,2441.5,2441.2,0.4103]
[1729901412677,3.2078,2441.5,2440.4,3.2078]
[1729901412874,3.2078,2441.5,2440.9,3.2078]
[1729901413290,0.41033,2441.1,2440.9,3.2078]
[1729901413476,1.18454,2441.0,2440.9,3.2078]
[1729901413676,0.7742,2441.0,2440.8,3.2078]
[1729901413883,3.2078,2441.5,2440.8,3.2078]
[1729901414182,3.982,2441.5,2440.8,3.2078]
[1729901414687,3.982,2441.5,2441.1,3.2078]
[1729901414883,3.982,2441.5,2441.1,3.61811]
[1729901415084,0.41027,2441.4,2441.1,3.2078]
[1729901415479,3.982,2441.5,2440.9,3.2078]
[1729901415682,0.41036,2440.9,2440.8,3.2078]
[1729901415883,3.982,2441.5,2440.5,3.2078]
[1729901415884,0.4104,2440.7,2440.5,3.2078]
[1729901416582,4.8394,2440.6,2439.6,0.41056]
[1729901416779,0.41047,2440.3,2439.8,3.2078]
[1729901417082,3.2078,2440.4,2440.0,0.4105]
[1729901417280,7.20409748,2440.1,2438.9,3.2078]
[1729901417490,7.20409748,2440.1,2439.0,3.2078]
[1729901417491,0.41062,2439.4,2439.0,3.2078]
[1729901417685,0.4106,2439.5,2439.0,3.2078]
[1729901417886,0.4106,2439.5,2438.9,3.61849]
[1729901418183,3.2078,2439.6,2438.6,3.2078]
[1729901418389,3.2078,2439.6,2438.9,3.61848]
[1729901418686,3.2078,2439.6,2439.0,0.41066]
[1729901419086,3.61839,2439.6,2439.0,0.41066]
[1729901419287,0.41062,2439.4,2438.9,3.2078]
[1729901419592,0.41066,2439.1,2438.6,3.2078]
[1729901419798,3.2078,2439.0,2438.1,3.2078]
[1729901419986,0.4107,2438.9,2438.4,3.2078]
[1729901420185,1.1634,2438.9,2438.4,3.2078]
[1729901420390,0.41074,2438.6,2438.0,3.2078]
[1729901420579,3.2078,2438.7,2438.0,3.2078]
[1729901420991,0.41075,2438.6,2438.0,3.2078]
[1729901421490,3.2078,2438.7,2438.0,3.2078]
[1729901421696,3.61859,2438.4,2437.6,3.2078]
[1729901421996,0.41079,2438.3,2437.6,3.6187]
[1729901422587,0.41079,2438.3,2437.7,3.2078]
[1729901422793,3.2078,2438.4,2437.7,3.2078]
[1729901423290,3.61859,2438.4,2437.7,3.2078]
[1729901423993,3.2078,2438.4,2437.7,0.41088]
[1729901424193,3.2078,2438.4,2437.7,3.2078]
[1729901424194,3.61858,2438.4,2437.7,3.2078]
[1729901424390,3.2078,2437.8,2437.1,3.2078]
[1729901424695,3.2078,2437.8,2436.8,3.2078]
[1729901424696,3.61868,2437.8,2436.8,3.2078]
[1729901424892,3.61868,2437.8,2437.1,3.2078]
[1729901425089,3.2078,2437.8,2436.6,1.593]
[1729901425294,3.2078,2437.5,2436.8,0.41104]
[1729901425489,3.61879,2437.2,2436.6,3.2078]
[1729901425986,3.2078,2437.2,2436.6,3.2078]
[1729901427391,3.2078,2437.2,2436.6,3.61888]
[1729901427581,3.2078,2437.2,2436.6,3.2078]
[1729901427789,3.2078,2437.2,2436.7,0.41105]
[1729901427989,3.2078,2437.2,2436.8,0.41104]
[1729901428180,3.2078,2437.2,2436.6,3.2078]
[1729901428590,2.59093524,2437.2,2436.6,7.311]
[1729901428897,0.7764,2437.5,2437.0,3.2078]
[1729901429585,0.7764,2437.5,2436.6,3.2078]
[1729901429782,0.7764,2437.5,2436.8,0.41104]
[1729901429985,3.2078,2437.6,2436.6,3.2078]
[1729901430194,0.41093,2437.5,2436.9,3.2078]
[1729901430384,3.2078,2437.6,2436.9,3.2078]
[1729901430589,3.2078,2437.6,2436.9,3.61882]
[1729901430790,3.61873,2437.6,2436.9,3.2078]
[1729901430992,3.2078,2437.6,2436.9,3.61883]
[1729901431191,3.2078,2437.0,2436.1,7.20409748]
[1729901431488,2.3704,2438.0,2436.9,0.41103]
[1729901431489,3.2078,2437.4,2436.9,0.41103]
[1729901431695,3.2078,2437.4,2437.0,0.41101]
[1729901431883,3.2078,2437.4,2436.7,3.2078]
[1729901431884,3.2078,2437.4,2436.9,0.41103]
[1729901432290,3.2078,2437.4,2437.0,3.2078]
[1729901432594,2.3704,2438.0,2436.5,3.99629748]
[1729901432595,0.7764,2438.0,2437.3,3.2078]
[1729901432897,0.7764,2438.0,2437.7,0.41089]
[1729901433092,3.2078,2438.1,2437.7,0.41089]
[1729901433405,3.2078,2438.1,2437.0,1.594]
[1729901433406,3.2078,2437.8,2437.0,3.2078]
[1729901433585,3.2078,2437.4,2437.0,3.2078]
[1729901433785,3.2078,2437.4,2436.9,0.41102]
[1729901433786,3.61876,2437.4,2436.6,0.41107]
[1729901434091,3.2078,2437.4,2436.5,3.61889]
[1729901434294,3.2078,2437.1,2436.5,3.61889]
[1729901434686,3.2078,2437.1,2436.7,0.41106]
[1729901434994,3.2078,2437.4,2436.6,3.2078]
[1729901435291,3.2078,2437.4,2436.9,0.41102]
[1729901435685,3.2078,2437.4,2436.6,3.2078]
[1729901435881,3.2078,2437.4,2436.7,0.41105]
[1729901436095,0.41097,2437.3,2436.6,3.61888]
[1729901436488,4.39395,2437.4,2436.7,0.41106]
[1729901436688,0.41096,2437.3,2436.6,3.2078]
[1729901436890,0.41096,2437.3,2436.6,3.61888]
[1729901437390,4.39396,2437.4,2436.6,3.61888]
[1729901437591,0.41097,2437.3,2436.6,3.61888]
[1729901437786,3.983,2437.4,2436.6,3.2078]
[1729901438097,0.41099,2437.2,2436.6,3.2078]
[1729901438696,3.983,2437.4,2436.3,3.7087]
[1729901438993,0.7319,2437.1,2436.6,3.2078]
[1729901439490,0.7319,2437.1,2436.2,3.61893]
[1729901439491,3.2078,2436.8,2436.2,3.61893]
[1729901439895,3.2078,2436.8,2436.5,0.41109]
[1729901440197,3.2078,2437.2,2436.6,3.2078]
[1729901440394,3.2078,2437.8,2436.9,3.2078]
[1729901440693,3.2078,2437.8,2437.2,3.61877]
[1729901440991,3.2078,2437.8,2437.5,0.41093]
[1729901441192,0.7467,2437.9,2437.5,3.61872]
[1729901441398,0.7467,2437.9,2437.5,3.2078]
[1729901441590,1.15756,2437.9,2437.5,3.2078]
[1729901441791,0.7467,2437.9,2437.5,3.2078]
[1729901442189,3.2078,2437.6,2436.8,3.2078]
[1729901442396,3.61872,2437.6,2436.9,0.41102]
[1729901442589,0.41093,2437.5,2436.8,3.61884]
[1729901442791,3.2078,2437.6,2436.8,3.2078]
[1729901443191,3.2078,2437.6,2437.2,0.41098]
[1729901443499,3.2078,2437.6,2437.0,0.411]
[1729901443697,3.2078,2437.6,2437.1,0.41099]
[1729901444294,3.2078,2437.6,2436.8,3.2078]
[1729901444593,3.2078,2437.6,2437.1,0.41098]
[1729901446297,3.2078,2437.6,2437.0,0.411]
[1729901446498,3.2078,2437.6,2436.8,3.2078]
[1729901446499,2.17979217,2437.6,2437.1,3.2078]
[1729901446705,1.15756,2437.9,2437.4,3.2078]
[1729901446999,1.15756,2437.9,2436.6,0.5007]
[1729901447000,0.41092,2437.6,2437.1,3.2078]
[1729901447299,3.6187,2437.7,2437.1,3.61879]
[1729901447504,3.6187,2437.7,2437.1,3.2078]
[1729901447807,0.41097,2437.3,2436.9,3.2078]
[1729901448104,7.20409748,2437.7,2436.9,3.2078]
[1729901448290,0.41092,2437.6,2437.0,0.41101]
[1729901448492,0.41097,2437.3,2436.9,3.2078]
[1729901448999,0.7515,2437.2,2436.9,3.61882]
[1729901449204,0.7515,2437.2,2437.0,0.41101]
[1729901449401,0.7255,2437.3,2437.0,0.41101]
[1729901450005,0.7255,2437.3,2437.1,0.41099]
[1729901450199,0.7255,2437.3,2436.9,3.2078]
[1729901450406,0.7255,2437.3,2437.0,0.411]
[1729901450908,3.2078,2437.4,2436.7,3.2078]
[1729901451101,3.2078,2437.4,2436.9,0.41103]
[1729901451503,3.2078,2437.4,2436.8,0.41104]
[1729901451706,3.61875,2437.4,2436.8,0.41104]
[1729901452098,3.2078,2437.1,2436.4,3.2078]
[1729901452299,0.41101,2437.0,2436.4,3.6189]
[1729901452602,0.41102,2437.0,2436.4,3.6189]
[1729901452801,0.7517,2436.9,2436.4,3.2078]
[1729901453009,0.7517,2436.9,2436.3,0.41112]
[1729901453197,0.7517,2436.9,2436.5,3.2078]
[1729901453402,1.16273,2436.9,2436.5,3.2078]
[1729901453604,0.7517,2436.9,2436.5,3.2078]
[1729901455106,0.7517,2436.9,2436.5,3.61889]
[1729901455310,0.7517,2436.9,2436.5,3.2078]
[1729901455611,0.7517,2436.9,2436.5,3.61889]
[1729901456014,0.1585,2436.8,2436.5,3.61889]
[1729901456402,0.1585,2436.8,2436.5,3.2078]
[1729901456710,0.41108,2436.6,2436.1,3.2078]
[1729901456908,7.3118,2436.7,2435.8,0.41121]
[1729901456909,3.957,2436.7,2435.8,0.41121]
[1729901457206,0.41111,2436.5,2435.9,3.2078]
[1729901457411,3.957,2436.7,2435.9,3.2078]
[1729901457412,0.41112,2436.4,2435.9,3.2078]
[1729901457707,3.957,2436.7,2435.9,3.2078]
[1729901457909,3.957,2436.7,2436.0,0.41117]
[1729901458103,3.957,2436.7,2436.1,0.41116]
[1729901458303,4.36808,2436.7,2436.1,0.41116]
[1729901458908,4.36808,2436.7,2435.9,3.2078]
[1729901459100,3.957,2436.7,2435.9,3.2078]
[1729901459307,0.7492,2436.7,2436.3,0.41112]
[1729901459609,4.36807,2436.7,2436.2,3.2078]
[1729901459805,3.957,2436.7,2436.2,3.2078]
[1729901460105,3.957,2436.7,2436.2,3.61894]
[1729901460306,3.957,2436.7,2436.2,3.2078]
[1729901460609,3.957,2436.7,2435.9,3.2078]
[1729901460810,3.957,2436.7,2436.3,0.41112]
[1729901461010,3.957,2436.7,2435.9,3.2078]
[1729901461215,3.957,2436.7,2436.1,0.41115]
[1729901461605,0.41109,2436.6,2436.0,0.41118]
[1729901462001,3.957,2436.7,2435.9,3.2078]
[1729901462208,3.957,2436.7,2436.4,0.41111]
[1729901462513,3.957,2436.7,2435.9,4.23817202]
[1729901462711,0.41113,2436.3,2435.9,4.23817202]
[1729901462910,0.7438,2436.2,2435.9,4.23817202]
[1729901463713,0.41108,2436.6,2436.0,0.41117]
[1729901463914,1.11418,2436.6,2436.0,0.41117]
[1729901464209,0.7031,2436.6,2435.9,4.23817202]
[1729901464417,0.7031,2436.6,2436.2,0.41114]
[1729901464912,3.2078,2436.7,2436.3,4.1048]
[1729901465213,0.1585,2436.8,2436.5,3.2078]
[1729901465611,0.1585,2436.8,2436.6,0.41108]
[1729901465812,0.1585,2436.8,2436.5,3.61888]
[1729901466217,0.1585,2436.8,2436.6,0.41108]
[1729901466607,0.1585,2436.8,2436.7,0.41106]
[1729901466818,0.1585,2436.8,2436.5,3.2078]
[1729901467316,3.55465913,2436.6,2436.1,3.2078]
[1729901467509,3.3663,2436.8,2436.2,0.41113]
[1729901467510,0.772,2436.7,2436.2,0.41113]
[1729901468511,0.772,2436.7,2436.1,3.2078]
[1729901468823,0.772,2436.7,2436.3,0.41112]
[1729901469115,0.772,2436.7,2436.6,0.41108]
[1729901469513,0.772,2436.7,2436.5,0.4111]
[1729901469712,0.772,2436.7,2436.6,0.41108]
[1729901470316,0.772,2436.7,2436.5,3.61889]
[1729901470817,0.772,2436.7,2436.6,0.41108]
[1729901471017,0.772,2436.7,2436.5,3.2078]
[1729901472920,3.2078,2436.8,2436.3,0.41112]
[1729901473421,0.7445,2437.2,2436.2,3.55465913]
[1729901473422,0.41102,2437.0,2436.4,3.61891]
[1729901473623,3.61881,2437.1,2436.4,3.61891]
[1729901473817,3.2078,2437.1,2436.4,3.61891]
[1729901474020,0.41102,2437.0,2436.4,3.61891]
[1729901474216,0.41102,2437.0,2436.4,3.2078]
[1729901474415,6.76245913,2437.1,2436.4,3.2078]
[1729901474621,0.7445,2437.2,2435.9,3.2078]
[1729901474622,3.2078,2436.5,2435.9,3.2078]
[1729901474821,1.4294,2436.4,2435.9,3.2078]
[1729901475124,1.4294,2436.4,2435.4,5.11962323]
[1729901475125,0.41124,2435.7,2435.4,3.2078]
[1729901475424,3.2078,2435.9,2435.3,3.2078]
[1729901475620,0.41122,2435.8,2435.3,3.2078]
[1729901476624,3.619,2435.9,2435.3,3.61909]
[1729901476921,3.2078,2435.9,2435.3,3.2078]
[1729901477223,3.2078,2435.9,2435.3,6.76245913]
[1729901477611,0.4112,2435.9,2435.6,3.2078]
[1729901477817,3.2078,2436.2,2435.5,3.2078]
[1729901478322,3.2078,2435.9,2435.3,3.55465913]
[1729901478719,3.2078,2435.9,2435.4,0.41127]
[1729901478923,3.2078,2435.9,2435.2,3.2078]
[1729901479223,3.2078,2435.9,2435.4,0.41127]
[1729901479425,3.2078,2435.9,2435.5,0.41126]
[1729901479724,1.4294,2436.4,2435.7,3.55465913]
[1729901480023,3.2078,2437.4,2437.0,0.41101]
[1729901480318,3.2078,2437.4,2436.1,3.2078]
[1729901480319,3.2078,2437.4,2436.8,3.2078]
[1729901480524,3.2078,2437.4,2436.8,3.61884]
[1729901480725,4.30455,2437.4,2436.9,3.2078]
[1729901480924,3.8936,2437.4,2436.9,3.2078]
[1729901481119,3.2078,2437.4,2437.3,0.41096]
[1729901481324,0.6858,2437.8,2437.3,3.2078]
[1729901481626,0.4109,2437.7,2437.0,3.6188]
[1729901482024,0.6858,2437.8,2437.3,3.2078]
[1729901482424,0.6858,2437.8,2437.4,0.41094]
[1729901482621,0.6858,2437.8,2437.5,0.41093]
[1729901483016,0.6858,2437.8,2437.6,3.2078]
[1729901483517,0.6897,2438.0,2437.6,3.2078]
[1729901484031,0.6897,2438.0,2437.6,3.61871]
[1729901484625,0.6897,2438.0,2437.6,3.2078]
[1729901485023,0.6897,2438.0,2437.6,3.6187]
[1729901485225,0.6654,2438.3,2437.8,3.55465913]
[1729901485422,3.2078,2438.6,2438.2,6.76245913]
[1729901485624,0.6576,2438.7,2438.3,0.41078]
[1729901485928,0.6576,2438.7,2438.2,7.17325913]
[1729901486432,0.6576,2438.7,2438.2,6.76245913]
[1729901486628,0.6576,2438.7,2438.3,0.41078]
[1729901486929,0.6576,2438.7,2438.3,3.2078]
[1729901487119,0.6576,2438.7,2438.0,3.55465913]
[1729901487426,3.2078,2438.3,2437.7,6.76245913]
[1729901487618,3.2078,2438.3,2437.7,3.2078]
[1729901488026,3.2078,2438.3,2437.4,3.55465913]
[1729901488221,3.2078,2438.3,2437.6,3.2078]
[1729901488424,0.41082,2438.2,2437.6,3.2078]